{"text_format":"3","workbook":"xlsx","n_sheets":2,"sheets":["AUGIMO DUOMENYS","AUGIMO DIAGRAMA"],"not_rendered":{"charts":1,"defined_names":3},"read":"whole","date_system":"1900"}

{"sheet":"AUGIMO DUOMENYS","index":0,"n_rows":23,"n_cols":8,"rows_kept":23,"merged":[[0,1,0,7],[1,2,1,7]]}
[null,"Kūdikio augimas "]
[null,"Kūdikio vardas","Pavadinimas"]
[null,"Amžius","Svarai (-ų)","Uncijos (-ų)","Svoris (svarai)","Svorio\nprocentilis","Ilgis (col.)","Ilgio\nprocentilis"]
[null,"Gimimo metu",7,null,{"$f":"IF(COUNT(Duomenys[[#This Row],[Svarai (-ų)]:[Uncijos (-ų)]])>0,Duomenys[[#This Row],[Svarai (-ų)]]+(Duomenys[[#This Row],[Uncijos (-ų)]]/16),NA())","v":7},40,19.5,70]
[null,"4 dienos",6,8,{"$f":"IF(COUNT(Duomenys[[#This Row],[Svarai (-ų)]:[Uncijos (-ų)]])>0,Duomenys[[#This Row],[Svarai (-ų)]]+(Duomenys[[#This Row],[Uncijos (-ų)]]/16),NA())","v":6.5},41,19.5,70]
[null,"7 dienos",6,4.8,{"$f":"IF(COUNT(Duomenys[[#This Row],[Svarai (-ų)]:[Uncijos (-ų)]])>0,Duomenys[[#This Row],[Svarai (-ų)]]+(Duomenys[[#This Row],[Uncijos (-ų)]]/16),NA())","v":6.3},42,20,71]
[null,"11 dienos",6,9.6,{"$f":"IF(COUNT(Duomenys[[#This Row],[Svarai (-ų)]:[Uncijos (-ų)]])>0,Duomenys[[#This Row],[Svarai (-ų)]]+(Duomenys[[#This Row],[Uncijos (-ų)]]/16),NA())","v":6.6},43,20,71]
[null,"14 dienos",7,null,{"$f":"IF(COUNT(Duomenys[[#This Row],[Svarai (-ų)]:[Uncijos (-ų)]])>0,Duomenys[[#This Row],[Svarai (-ų)]]+(Duomenys[[#This Row],[Uncijos (-ų)]]/16),NA())","v":7},44,20,71]
[null,"18 dienos",7,12,{"$f":"IF(COUNT(Duomenys[[#This Row],[Svarai (-ų)]:[Uncijos (-ų)]])>0,Duomenys[[#This Row],[Svarai (-ų)]]+(Duomenys[[#This Row],[Uncijos (-ų)]]/16),NA())","v":7.75},45,21,72]
[null,"21 dienos",8,8,{"$f":"IF(COUNT(Duomenys[[#This Row],[Svarai (-ų)]:[Uncijos (-ų)]])>0,Duomenys[[#This Row],[Svarai (-ų)]]+(Duomenys[[#This Row],[Uncijos (-ų)]]/16),NA())","v":8.5},46,21,72]
[null,"25 dienos",null,null,{"$f":"IF(COUNT(Duomenys[[#This Row],[Svarai (-ų)]:[Uncijos (-ų)]])>0,Duomenys[[#This Row],[Svarai (-ų)]]+(Duomenys[[#This Row],[Uncijos (-ų)]]/16),NA())","v":{"$error":"#N/A"}}]
[null,"28 dienos",null,null,{"$f":"IF(COUNT(Duomenys[[#This Row],[Svarai (-ų)]:[Uncijos (-ų)]])>0,Duomenys[[#This Row],[Svarai (-ų)]]+(Duomenys[[#This Row],[Uncijos (-ų)]]/16),NA())","v":{"$error":"#N/A"}}]
[null,"5 savaitės",null,null,{"$f":"IF(COUNT(Duomenys[[#This Row],[Svarai (-ų)]:[Uncijos (-ų)]])>0,Duomenys[[#This Row],[Svarai (-ų)]]+(Duomenys[[#This Row],[Uncijos (-ų)]]/16),NA())","v":{"$error":"#N/A"}}]
[null,"6 savaitės",null,null,{"$f":"IF(COUNT(Duomenys[[#This Row],[Svarai (-ų)]:[Uncijos (-ų)]])>0,Duomenys[[#This Row],[Svarai (-ų)]]+(Duomenys[[#This Row],[Uncijos (-ų)]]/16),NA())","v":{"$error":"#N/A"}}]
[null,"7 savaitės",null,null,{"$f":"IF(COUNT(Duomenys[[#This Row],[Svarai (-ų)]:[Uncijos (-ų)]])>0,Duomenys[[#This Row],[Svarai (-ų)]]+(Duomenys[[#This Row],[Uncijos (-ų)]]/16),NA())","v":{"$error":"#N/A"}}]
[null,"2 mėnesių",null,null,{"$f":"IF(COUNT(Duomenys[[#This Row],[Svarai (-ų)]:[Uncijos (-ų)]])>0,Duomenys[[#This Row],[Svarai (-ų)]]+(Duomenys[[#This Row],[Uncijos (-ų)]]/16),NA())","v":{"$error":"#N/A"}}]
[null,"3 mėnesių",null,null,{"$f":"IF(COUNT(Duomenys[[#This Row],[Svarai (-ų)]:[Uncijos (-ų)]])>0,Duomenys[[#This Row],[Svarai (-ų)]]+(Duomenys[[#This Row],[Uncijos (-ų)]]/16),NA())","v":{"$error":"#N/A"}}]
[null,"6 mėnesių",null,null,{"$f":"IF(COUNT(Duomenys[[#This Row],[Svarai (-ų)]:[Uncijos (-ų)]])>0,Duomenys[[#This Row],[Svarai (-ų)]]+(Duomenys[[#This Row],[Uncijos (-ų)]]/16),NA())","v":{"$error":"#N/A"}}]
[null,"9 mėnesių",null,null,{"$f":"IF(COUNT(Duomenys[[#This Row],[Svarai (-ų)]:[Uncijos (-ų)]])>0,Duomenys[[#This Row],[Svarai (-ų)]]+(Duomenys[[#This Row],[Uncijos (-ų)]]/16),NA())","v":{"$error":"#N/A"}}]
[null,"12 mėnesių",null,null,{"$f":"IF(COUNT(Duomenys[[#This Row],[Svarai (-ų)]:[Uncijos (-ų)]])>0,Duomenys[[#This Row],[Svarai (-ų)]]+(Duomenys[[#This Row],[Uncijos (-ų)]]/16),NA())","v":{"$error":"#N/A"}}]
[null,"18 mėnesių",null,null,{"$f":"IF(COUNT(Duomenys[[#This Row],[Svarai (-ų)]:[Uncijos (-ų)]])>0,Duomenys[[#This Row],[Svarai (-ų)]]+(Duomenys[[#This Row],[Uncijos (-ų)]]/16),NA())","v":{"$error":"#N/A"}}]
[null,"24 mėnesių",null,null,{"$f":"IF(COUNT(Duomenys[[#This Row],[Svarai (-ų)]:[Uncijos (-ų)]])>0,Duomenys[[#This Row],[Svarai (-ų)]]+(Duomenys[[#This Row],[Uncijos (-ų)]]/16),NA())","v":{"$error":"#N/A"}}]
[null,"36 mėnesių",null,null,{"$f":"IF(COUNT(Duomenys[[#This Row],[Svarai (-ų)]:[Uncijos (-ų)]])>0,Duomenys[[#This Row],[Svarai (-ų)]]+(Duomenys[[#This Row],[Uncijos (-ų)]]/16),NA())","v":{"$error":"#N/A"}}]

{"sheet":"AUGIMO DIAGRAMA","index":1,"n_rows":1,"n_cols":2,"rows_kept":1,"merged":[[0,1,1,1]]}
[null,"KŪDIKIO AUGIMO DIAGRAMA"]